Cogmind - Beta 16 @@@ ROGUE MODE // 2025.11.01 @ 21:44:33 Player: CheifClapdad Result: Destroyed by Y-64 Sentinel with KE Penetrator Performance ------------- Evolutions (4) 2000 Regions Visited (11) 2200 Robots Destroyed (112) 560 Value Destroyed (4789) 4789 Prototype IDs (7) 140 Alien Tech Used (0) 0 Bonus (1431) 1431 TOTAL SCORE: 11120 Bonus ------- High Alert Combat Kills 40 Follower Combat Kills 191 Entered Garrisons 200 Used RIF Installer 500 Entered DSFs 500 Cogmind --------- Core Integrity 0/850 Matter 189/300 Energy 587/600 System Corruption 2% Temperature Cool (7) Movement Treading (160) Location -6/Archives Parts ------- > --- POWER (2) -------- Quantum Reactor Quantum Reactor > --- PROPULSION (4) --- Medium Treads Improved Medium Treads Centrium Heavy Treads > --- UTILITY (6) ------ Advanced Heat Sink Large Storage Unit Improved Targeting Computer Improved Targeting Computer Centrium Medium Armor Plating > --- WEAPON (3) ------- (None) > --- INVENTORY (15) --- Light Ion Engine Light Ion Engine Light Fission Core Centrium Heavy Treads Improved Titanium Leg Flexi-carbon Leg High-capacity Matter Pod (200) Centrium Medium Armor Plating Peak State ------------ > --- POWER ------------ Quantum Reactor Quantum Reactor > --- PROPULSION ------- Medium Treads Improved Medium Treads Centrium Heavy Treads > --- UTILITY ---------- Advanced Heat Sink Large Storage Unit Improved Targeting Computer Improved Targeting Computer Centrium Medium Armor Plating > --- WEAPON ----------- Heavy Assault Cannon > --- INVENTORY -------- Light Ion Engine Light Ion Engine Light Fission Core Centrium Heavy Treads Improved Titanium Leg Flexi-carbon Leg High-capacity Matter Pod Centrium Medium Armor Plating [Rating: 74] Favorites ----------- Power Cooled Ion Engine Engine Cooled Ion Engine Power Core Light Fission Core Reactor Light Antimatter Reactor Propulsion Light Treads Treads Light Treads Leg Flexi-carbon Leg Wheel Wheel Utility Large Storage Unit Device Advanced Heat Sink Storage Large Storage Unit Processor Improved Targeting Computer Protection Hardened Heavy Armor Plating Weapon Enhanced Autogun Ballistic Gun Enhanced Autogun Ballistic Cannon Bore Cannon Launcher Rocket Launcher Build | -11 -10 -9 -8 -7 -7 -6 -6 -6 -6 -6 -6 ------- Run | Yrd Mat Mat Mat Fac DSF Fac Gar Fac Ext Cet Arc Slots Evolved 8 | . . 2 2 2 . 2 . . . . . Power 1 | . . . . . . 1 . . . . . Propulsion 2 | . . 2 . . . . . . . . . Utility 4 | . . . 2 1 . 1 . . . . . Weapon 1 | . . . . 1 . . . . . . . Parts Attached 110 | 5 7 5 18 3 4 5 9 21 24 9 . Power 17 | 1 . 1 2 . . 1 2 4 4 2 . Engine 9 | 1 . 1 2 . . 1 1 . 3 . . Core 3 | . . . . . . . . 2 1 . . Reactor 5 | . . . . . . . 1 2 . 2 . Propulsion 37 | 1 2 3 6 . 2 1 2 7 10 3 . Treads 21 | . 2 3 5 . 2 1 2 3 . 3 . Leg 15 | . . . 1 . . . . 4 10 . . Wheel 1 | 1 . . . . . . . . . . . Hover . | . . . . . . . . . . . . Flight . | . . . . . . . . . . . . Utility 25 | 1 3 . 5 1 1 2 3 5 1 3 . Device 12 | . 1 . 1 . 1 2 1 4 1 1 . Storage 4 | 1 2 . 1 . . . . . . . . Processor 2 | . . . . . . . . 1 . 1 . Hackware . | . . . . . . . . . . . . Protection 7 | . . . 3 1 . . 2 . . 1 . Artifact . | . . . . . . . . . . . . Weapon 31 | 2 2 1 5 2 1 1 2 5 9 1 . Energy Gun . | . . . . . . . . . . . . Energy Cannon . | . . . . . . . . . . . . Ballistic Gun 18 | 2 2 1 2 2 . 1 2 4 2 . . Ballistic Cannon 9 | . . . 1 . . . . . 7 1 . Launcher 4 | . . . 2 . 1 . . 1 . . . Special Weapon . | . . . . . . . . . . . . Impact Weapon . | . . . . . . . . . . . . Slashing Weapon . | . . . . . . . . . . . . Piercing Weapon . | . . . . . . . . . . . . Special Melee Weapon . | . . . . . . . . . . . . Unidentified Prototypes 7 | . . 2 2 . . 1 . . . 2 . Corrupted Parts 1 | . . . . . . . 1 . . . . System Corruption 1 | . . . . . . . 1 . . . . Parts Lost 61 | . . . 11 . 1 . 5 20 16 7 1 Power 7 | . . . . . . . 1 4 2 . . Propulsion 24 | . . . 7 . 1 . 1 7 6 2 . Utility 14 | . . . 3 . . . 2 5 3 1 . Weapon 16 | . . . 1 . . . 1 4 5 4 1 Highest Loss Streak 14 | . . . 5 . 1 . 3 14 5 7 1 To Critical Strikes 5 | . . . . . . . . . 2 3 . Average Backups 12 | 3 9 13 13 12 12 11 12 11 12 7 8 Power 1 | . 1 2 2 2 2 1 . . . 2 3 Propulsion 2 | 2 1 . . . . . 2 4 5 2 3 Utility 2 | . . 4 3 3 3 2 1 1 2 1 2 Weapon 6 | . 6 6 7 7 7 8 7 5 5 . . Tool/Special . | . . . . . . . . . . . . Unused Backups 20 | . 3 4 2 . . 1 1 4 1 . 4 Power 4 | . . 2 1 . . . . . . . 1 Propulsion 6 | . 1 . . . . . . 3 . . 2 Utility 5 | . . 2 1 . . . . 1 . . 1 Weapon 5 | . 2 . . . . 1 1 . 1 . . Tool/Special . | . . . . . . . . . . . . Average Slot Usage (%) 89 | . 97 99 83 76 83 86 94 90 91 73 73 Engine 7 | . 14 11 9 7 7 13 11 2 5 2 . Core 1 | . . . . . . . . 2 4 2 . Reactor 1 | . . . . . . . 1 5 . 8 13 Treads 18 | . 19 43 30 15 22 20 25 3 . 15 20 Leg 8 | . . . . 7 2 . . 19 24 6 . Device 16 | . 12 11 11 7 11 19 18 21 23 6 6 Storage 7 | . 14 11 9 15 7 6 6 6 6 6 6 Processor 2 | . . . . . . . . 5 6 11 13 Protection 3 | . . . 4 7 7 6 9 1 . 3 6 Ballistic Gun 15 | . 28 22 15 11 19 19 18 18 4 2 . Ballistic Cannon 3 | . . . 2 3 . . . . 12 4 6 Peak Build Rating 74 | 5 11 17 30 41 47 57 62 68 67 74 74 Average Rating 40 | 3 10 16 21 33 43 54 52 58 58 62 73 On Entrance 37 | . 5 11 17 30 38 46 56 62 61 48 74 Avg Prop Armor Cover (%) 8 | 6 9 . 2 2 1 . . . 13 9 . Naked Turns . | . . . . . . . . . . . . Heaviest Build 84 | 14 33 36 56 65 72 82 84 66 71 80 80 Greatest Support 138 | 3 40 80 80 40 96 96 96 88 80 138 138 Greatest Overweight (x) 17 | 4 5 . 2 1 1 1 . 17 1 . . Average Overweight (x) . | 1 . . . 1 . . . . . . . Largest Inventory Capacity 15 | 8 15 15 15 15 15 15 15 15 15 15 15 Average Capacity 14 | 6 11 15 15 15 15 15 15 15 15 15 15 Most Carried 15 | 5 10 15 15 15 13 15 15 15 15 10 9 Average Carried 12 | 3 9 13 14 14 13 12 13 12 13 7 9 Final Capacity 15 | 8 15 15 15 15 15 15 15 15 15 15 15 Final Carried 15 | 5 10 15 15 13 13 14 14 15 10 9 9 Class Distribution -------------------- 32% | Mutant 23% | Scavenger-Gunner 19% | Scavenger-Tank 17% | Scavenger-Mutant 4% | Gunner Dominant Class ---------------- Mutant | -10/Materials Mutant | -9/Materials Scavenger-Mutant | -8/Materials Scavenger-Mutant | -7/Factory Scavenger-Tank | -7/DSF Scavenger-Tank | -6/Factory Scavenger-Tank | -6/Garrison Scavenger-Gunner | -6/Factory Scavenger-Gunner | -6/Extension Scavenger-Mutant | -6/Cetus Scavenger-Mutant | -6/Archives Resources | -11 -10 -9 -8 -7 -7 -6 -6 -6 -6 -6 -6 ----------- Run | Yrd Mat Mat Mat Fac DSF Fac Gar Fac Ext Cet Arc Matter Collected 4839 | 192 99 446 605 . 594 224 749 587 1106 237 . Remotely 973 | . . . . . . 224 749 . . . . Salvage Created 5084 | . 185 615 1018 . 521 356 972 568 586 247 16 Parts 249 | . 14 45 67 . 13 19 28 23 28 12 . Haulers Intercepted 6 | . 1 2 2 . . . . 1 . . . Recyclers Shooed 4 | . . 1 . . . . . 1 2 . . Parts Field Recycled . | . . . . . . . . . . . . Retrieved Matter . | . . . . . . . . . . . . Parts Self-Destructed . | . . . . . . . . . . . . Prevented . | . . . . . . . . . . . . Parts Restored . | . . . . . . . . . . . . Kills | -11 -10 -9 -8 -7 -7 -6 -6 -6 -6 -6 -6 ------- Run | Yrd Mat Mat Mat Fac DSF Fac Gar Fac Ext Cet Arc Combat Hostiles Destroyed 88 | . 2 9 28 . 4 4 15 10 10 5 1 Guns 62 | . 2 9 21 . 3 4 11 7 3 2 . Cannons 14 | . . . 4 . . . . . 6 3 1 AOE 12 | . . . 3 . 1 . 4 3 1 . . Classes Destroyed 16 | . 3 6 3 . . . 2 1 1 . . Worker 4 | . . 1 2 . . . . . 1 . . Builder 4 | . . 1 1 . . . . 1 1 . . Tunneler 2 | . . 2 . . . . . . . . . Hauler 6 | . 1 2 2 . . . . 1 . . . Recycler 3 | . . 1 . . . 1 . . 1 . . Mechanic 1 | . . . 1 . . . . . . . . Watcher 3 | . 1 1 1 . . . . . . . . Swarmer 19 | . . 3 13 . 2 . . 1 . . . Grunt 36 | . 2 3 8 . . 2 7 6 8 . . Brawler 2 | . . . . . . . 2 . . . . Sentry 13 | . . 3 2 . . 2 4 1 . . 1 Specialist 6 | . . . 4 . 2 . . . . . . Hunter 5 | . . . . . . . 2 1 1 1 . Programmer 1 | . . . . . . . . 1 . . . Heavy 1 | . . . 1 . . . . . . . . Behemoth 1 | . . . . . . . . . 1 . . Cetus Guard 4 | . . . . . . . . . . 4 . Guerrilla 1 | . . . . . . . . . 1 . . Best Kill Streak 12 | . 1 4 12 . 2 2 8 5 2 4 1 Combat Bots Only 8 | . 1 3 8 . 2 2 8 5 2 4 1 Max Kills in Single Turn 3 | . 1 1 3 . 1 1 1 1 2 1 1 Gunslinging 1 | . . . 1 . . . . . . . . Exploded 1 | . . . 1 . 1 . 1 1 1 . . Melee . | . . . . . . . . . . . . Uniques/NPCs Destroyed . | . . . . . . . . . . . . Combat | -11 -10 -9 -8 -7 -7 -6 -6 -6 -6 -6 -6 -------- Run | Yrd Mat Mat Mat Fac DSF Fac Gar Fac Ext Cet Arc Hostile Shots Fired 1121 | . 13 38 226 . 58 35 238 286 148 65 14 Missed 379 | . 3 15 66 . 15 16 74 125 45 17 3 Hits 742 | . 10 23 160 . 43 19 164 161 103 48 11 Melee 1 | . . . . . . . 1 . . . . Projectile 741 | . 10 23 160 . 43 19 163 161 103 48 11 AOE 2 | . . . . . . . . 2 . . . Critical Strikes 29 | . 1 . 4 . 1 . 2 3 6 12 . Damage Taken 10192 | . 104 172 1876 . 716 126 1505 2326 1997 1112 258 Core 1204 | . 22 48 152 . 124 . 113 328 353 39 25 Absorbed by Shields 1479 | . 41 68 341 . 161 53 391 212 212 . . Redirected to Shielding 37 | . . . . . . . 3 34 . . . Core Remaining (%) 86 | 100 91 88 72 . 82 . . . . . . Volleys Fired 361 | . 14 32 102 . 13 12 50 41 65 25 7 Largest 3 | . 2 2 2 . 3 3 3 3 3 2 1 Hottest 144 | . 46 46 62 . 86 80 85 85 144 78 50 Shots Fired 789 | . 28 64 193 . 31 36 141 106 153 30 7 Gun 623 | . 28 64 171 . 29 36 118 102 60 15 . Cannon 133 | . . . 19 . . . . . 92 15 7 Launcher 33 | . . . 3 . 2 . 23 4 1 . . Special . | . . . . . . . . . . . . Kinetic 756 | . 28 64 190 . 29 36 118 102 152 30 7 Thermal . | . . . . . . . . . . . . Explosive 24 | . . . 3 . . . 16 4 1 . . Electromagnetic 9 | . . . . . 2 . 7 . . . . Robot Hit Streak 15 | . 5 11 15 . 6 10 11 10 15 8 11 Robot Miss Streak 7 | . 2 2 4 . 3 2 5 5 7 2 . Penetration Max 1 | . . . . . . . . 1 1 1 1 Secondary Targets 10 | . . . 5 . . 1 2 1 1 . . Max Gunslinging Chain 1 | . . . 1 . . 1 1 1 1 . . Shots Hit Robots 491 | . 14 43 132 . 15 24 84 77 72 23 7 Core Hits 250 | . 7 21 54 . 7 13 63 42 28 13 2 Critical Kills 11 | . . . . . . . 2 2 6 1 . Critical Parts Destroyed 20 | . . . . . . 1 1 1 17 . . Critical Strikes 34 | . . . 1 . . 1 3 3 25 1 . Destroy 33 | . . . . . . 1 3 3 25 1 . Blast 1 | . . . 1 . . . . . . . . Melee Attacks . | . . . . . . . . . . . . Impact . | . . . . . . . . . . . . Slashing . | . . . . . . . . . . . . Piercing . | . . . . . . . . . . . . Sneak Attacks . | . . . . . . . . . . . . Combat Hostiles . | . . . . . . . . . . . . Follow-up Attacks . | . . . . . . . . . . . . Damage Inflicted 12924 | . 202 674 2993 . 333 449 3367 1800 1796 905 405 Guns 7369 | . 202 674 2009 . 245 449 1282 1393 728 387 . Cannons 2298 | . . . 353 . . . . . 1022 518 405 Explosions 3227 | . . . 631 . 67 . 2085 407 37 . . Melee . | . . . . . . . . . . . . Ramming 30 | . . . . . 21 . . . 9 . . Kinetic 9667 | . 202 674 2362 . 245 449 1282 1393 1750 905 405 Thermal 55 | . . . . . . . 55 . . . . Explosive 2542 | . . . 631 . . . 1467 407 37 . . Electromagnetic 630 | . . . . . 67 . 563 . . . . Impact . | . . . . . . . . . . . . Slashing . | . . . . . . . . . . . . Piercing . | . . . . . . . . . . . . Highest Corruption 2 | . . . 1 . 1 . 1 2 2 2 2 Average Corruption 1 | . . . 1 . 1 . 1 1 2 2 2 Corruption Purged . | . . . . . . . . . . . . Corruption Blocked . | . . . . . . . . . . . . Effects 47 | . . . 7 . . . 2 8 22 7 1 Message Errors 17 | . . . 3 . . . . 4 7 2 1 Matter Fused 8 | . . . 2 . . . . 1 3 2 . Heat Flow Errors 6 | . . . 1 . . . 1 . 3 1 . Energy Discharges 7 | . . . . . . . . 1 5 1 . Parts Fused 1 | . . . . . . . . . 1 . . Data Loss (minor) 4 | . . . 1 . . . 1 . 2 . . Alerts 2 | . . . . . . . . . 1 1 . Weapon Failures 2 | . . . . . . . . 2 . . . Overload Shots . | . . . . . . . . . . . . Overflow Damage 69 | . . . . . . . 12 15 19 8 15 Projectiles 42 | . . . . . . . . . 19 8 15 Explosions 27 | . . . . . . . 12 15 . . . Melee . | . . . . . . . . . . . . Knockbacks 21 | . . . 3 . . . . . 14 3 1 Impact . | . . . . . . . . . . . . Kinetic 20 | . . . 3 . . . . . 13 3 1 Secondary 1 | . . . . . . . . . 1 . . Self-Inflicted Damage 178 | . . . . . 28 . 104 46 . . . Shots 11 | . . . . . 2 . 7 2 . . . Rammed 1 | . . . . . 1 . . . . . . Targets Rammed 3 | . . . . . 1 . . . 2 . . Kicked 2 | . . . . . . . . . 2 . . Crushed . | . . . . . . . . . . . . Highest Temperature 262 | . 14 . 246 . 21 197 199 196 242 262 . Average Temperature 102 | . 4 . 99 . 13 80 111 129 89 142 . Received Heat Transfer 2002 | . 69 34 477 . 50 42 399 545 359 . 27 Siege Activations . | . . . . . . . . . . . . Martial Activations . | . . . . . . . . . . . . Shielding Activations . | . . . . . . . . . . . . Robots Disrupted . | . . . . . . . . . . . . Combat Hostiles . | . . . . . . . . . . . . Robots Corrupted 2 | . . . . . . . 2 . . . . Combat Hostiles . | . . . . . . . . . . . . Parts Fried . | . . . . . . . . . . . . Impact Corruptions . | . . . . . . . . . . . . Robots Melted . | . . . . . . . . . . . . Combat Hostiles . | . . . . . . . . . . . . Parts Melted . | . . . . . . . . . . . . Heat Transferred 100 | . . . . . . . 100 . . . . Parts Sabotaged . | . . . . . . . . . . . . Parts Stolen . | . . . . . . . . . . . . Parts Stripped . | . . . . . . . . . . . . Power Chain Reactions 1 | . . . . . . . 1 . . . . Alert | -11 -10 -9 -8 -7 -7 -6 -6 -6 -6 -6 -6 ------- Run | Yrd Mat Mat Mat Fac DSF Fac Gar Fac Ext Cet Arc Maximum Alert Level 2 | . . . 1 . 1 . 2 1 1 . . Low Security (%) 73 | 100 100 100 14 100 88 100 33 91 95 100 100 Level 1 21 | . . . 85 . 11 . 14 8 4 . . Level 2 5 | . . . . . . . 51 . . . . Level 3 . | . . . . . . . . . . . . Level 4 . | . . . . . . . . . . . . Level 5 . | . . . . . . . . . . . . High Security . | . . . . . . . . . . . . Max Security . | . . . . . . . . . . . . Peak Influence 503 | . 46 199 376 123 211 110 503 263 226 53 20 Initial 263 | . . . 70 118 86 110 39 263 . 11 2 Average 122 | . 6 46 255 120 152 36 321 95 56 18 3 Influence Increases 3065 | . 81 336 811 5 135 129 514 278 628 128 20 Destroy 0b10 Robot/C 1860 | . 40 180 560 . 80 80 300 200 300 100 20 Destroy 0b10 Robot/NC 140 | . 10 40 35 . . 5 10 10 30 . . Destroy Leader 328 | . 14 56 116 . 10 20 30 42 30 10 . Allied During Kill 130 | . . . . . . . . . 130 . . Successful Hack 43 | . . . . 5 . 24 . . 14 . . Disable Machine 105 | . . . 60 . 15 . . . 15 15 . Anti-Garrison Action 100 | . . . . . . . 100 . . . . Destroy Structure 164 | . 2 . 25 . . . 59 11 64 3 . Lose Combat Pursuer 195 | . 15 60 15 . 30 . 15 15 45 . . Influence Decreases 3065 | . 81 169 717 143 47 283 68 781 608 143 25 Entered New Map 648 | . . . 97 143 37 101 18 240 . 9 3 Time Decay 1751 | . 81 169 510 . . 182 . 351 342 104 12 Lost Part 546 | . . . 110 . 10 . 50 190 146 30 10 Lost Ally 120 | . . . . . . . . . 120 . . Squads Dispatched 16 | . . 2 5 . 1 1 . 3 3 1 . Investigation 3 | . . . . . . . . . 2 1 . Extermination 2 | . . . . . . . . 2 . . . Reinforcement 10 | . . 2 5 . 1 . . 1 1 . . Assault . | . . . . . . . . . . . . Garrison 1 | . . . . . . 1 . . . . . Intercept . | . . . . . . . . . . . . Searches Triggered . | . . . . . . . . . . . . Construction Impeded 2 | . . . . . . . . 1 1 . . Haulers Reinforced . | . . . . . . . . . . . . Active Scanning Responses . | . . . . . . . . . . . . Cargo Convoy Interrupts . | . . . . . . . . . . . . Stealth | -11 -10 -9 -8 -7 -7 -6 -6 -6 -6 -6 -6 --------- Run | Yrd Mat Mat Mat Fac DSF Fac Gar Fac Ext Cet Arc Distress Signals 9 | . 1 1 2 . . . . 2 2 1 . Communications Jammed . | . . . . . . . . . . . . Distress Signals . | . . . . . . . . . . . . Times Spotted 139 | . 7 14 38 . 11 5 17 17 20 6 4 Peak Tracking Total 8 | . 2 3 7 . 3 3 8 6 4 5 1 Tactical Retreats 11 | . 1 2 1 . 2 . 1 1 3 . . Traps | -11 -10 -9 -8 -7 -7 -6 -6 -6 -6 -6 -6 ------- Run | Yrd Mat Mat Mat Fac DSF Fac Gar Fac Ext Cet Arc Traps Triggered 5 | . 1 . 1 . 1 . 1 1 . . . Indirectly . | . . . . . . . . . . . . Trap Hack Attempts . | . . . . . . . . . . . . Triggered . | . . . . . . . . . . . . Disarmed . | . . . . . . . . . . . . Reprogrammed . | . . . . . . . . . . . . Reused . | . . . . . . . . . . . . Traps Extracted . | . . . . . . . . . . . . Installed . | . . . . . . . . . . . . Triggered . | . . . . . . . . . . . . Machines | -11 -10 -9 -8 -7 -7 -6 -6 -6 -6 -6 -6 ---------- Run | Yrd Mat Mat Mat Fac DSF Fac Gar Fac Ext Cet Arc Machines Disabled 11 | . . . 4 . 1 . 2 . 1 3 . Max in Single Turn 2 | . . . 2 . 1 . 1 . 1 2 . Garrison Relay 2 | . . . . . . . 2 . . . . Machines Repaired . | . . . . . . . . . . . . Machines Dismantled . | . . . . . . . . . . . . Machines Sabotaged . | . . . . . . . . . . . . Overloaded Fab Kills . | . . . . . . . . . . . . Hacking | -11 -10 -9 -8 -7 -7 -6 -6 -6 -6 -6 -6 --------- Run | Yrd Mat Mat Mat Fac DSF Fac Gar Fac Ext Cet Arc Machines Accessed 9 | . . . . 1 . 1 . 1 5 1 . Terminals 8 | . . . . 1 . . . 1 5 1 . Fabricators . | . . . . . . . . . . . . Repair Stations . | . . . . . . . . . . . . Recycling Units . | . . . . . . . . . . . . Scanalyzers . | . . . . . . . . . . . . Garrison Access 1 | . . . . . . 1 . . . . . Total Hacks 16 | . . . . 1 . 1 . 1 9 4 . Successful 8 | . . . . 1 . 1 . 1 4 1 . Failed 8 | . . . . . . . . . 5 3 . Catastrophic 4 | . . . . . . . . . 2 2 . Database Lockouts . | . . . . . . . . . . . . Manual . | . . . . . . . . . . . . Terminals 15 | . . . . 1 . . . 1 9 4 . Fabricators . | . . . . . . . . . . . . Repair Stations . | . . . . . . . . . . . . Recycling Units . | . . . . . . . . . . . . Scanalyzers . | . . . . . . . . . . . . Garrison Access 1 | . . . . . . 1 . . . . . Terminal Hacks 7 | . . . . 1 . . . 1 4 1 . Open Door 6 | . . . . . . . . 1 4 1 . Open DSF 1 | . . . . 1 . . . . . . . Fabricator Hacks . | . . . . . . . . . . . . Repair Station Hacks . | . . . . . . . . . . . . Recycling Unit Hacks . | . . . . . . . . . . . . Scanalyzer . | . . . . . . . . . . . . Garrison Access Hacks 1 | . . . . . . 1 . . . . . Unlock Access 1 | . . . . . . 1 . . . . . Unauthorized Hacks . | . . . . . . . . . . . . Terminals . | . . . . . . . . . . . . Fabricators . | . . . . . . . . . . . . Repair Stations . | . . . . . . . . . . . . Recycling Units . | . . . . . . . . . . . . Scanalyzers . | . . . . . . . . . . . . Garrison Access . | . . . . . . . . . . . . Data Cores Recovered 1 | . . . . . . . . . 1 . . Used . | . . . . . . . . . . . . Hacking Detections 6 | . . . . . . 1 . 1 3 1 . Full Trace Events 2 | . . . . . . . . . 1 1 . Feedback Events . | . . . . . . . . . . . . Feedback Blocked . | . . . . . . . . . . . . Robot Schematics Acquired . | . . . . . . . . . . . . Robots Built . | . . . . . . . . . . . . Authchips . | . . . . . . . . . . . . Time . | . . . . . . . . . . . . Total Robot Build Rating . | . . . . . . . . . . . . Part Schematics Acquired . | . . . . . . . . . . . . Parts Built . | . . . . . . . . . . . . Authchips . | . . . . . . . . . . . . Time . | . . . . . . . . . . . . Total Part Build Rating . | . . . . . . . . . . . . Part Studies Acquired . | . . . . . . . . . . . . Parts Repaired . | . . . . . . . . . . . . Time . | . . . . . . . . . . . . Parts Recycled . | . . . . . . . . . . . . Recycled Matter . | . . . . . . . . . . . . Retrieved Matter . | . . . . . . . . . . . . Retrieved Components . | . . . . . . . . . . . . Parts Scanalyzed . | . . . . . . . . . . . . Part Schematics Acquired . | . . . . . . . . . . . . Parts Damaged . | . . . . . . . . . . . . Bothacking | -11 -10 -9 -8 -7 -7 -6 -6 -6 -6 -6 -6 ------------ Run | Yrd Mat Mat Mat Fac DSF Fac Gar Fac Ext Cet Arc Used RIF Installer 1 | . . . . . . . 1 . . . . Robots Hacked . | . . . . . . . . . . . . Non-combat . | . . . . . . . . . . . . Combat . | . . . . . . . . . . . . Robot Hacks Applied . | . . . . . . . . . . . . Relay Couplers Released 9 | . . . . . . . 9 . . . . Machine Destruction 9 | . . . . . . . 9 . . . . Fabnet Peak Effective % . | . . . . . . . . . . . . Robots Rewired 5 | . . . . . . . . . 5 . . Allies Hacked . | . . . . . . . . . . . . Hacks Repelled . | . . . . . . . . . . . . Allies | -11 -10 -9 -8 -7 -7 -6 -6 -6 -6 -6 -6 -------- Run | Yrd Mat Mat Mat Fac DSF Fac Gar Fac Ext Cet Arc Total Allies 9 | . . . . . . . . . 9 . . Largest Group 7 | . . . . . . . . . 7 . . Highest-Rated Group 235 | . . . . . . . . . 235 . . Highest-Rated Ally 39 | . . . . . . . . . 39 . . Total Orders . | . . . . . . . . . . . . Ally Attacks 99 | . . . . . . . . . 99 . . Total Damage 1569 | . . . . . . . . . 1569 . . Kills 10 | . . . . . . . . . 10 . . Allies Corrupted . | . . . . . . . . . . . . Allies Melted . | . . . . . . . . . . . . Intel | -11 -10 -9 -8 -7 -7 -6 -6 -6 -6 -6 -6 ------- Run | Yrd Mat Mat Mat Fac DSF Fac Gar Fac Ext Cet Arc Active Infowar (turns) 1538 | . . . . . . . . 463 1075 . . Sensors 1538 | . . . . . . . . 463 1075 . . Robot Analysis Total . | . . . . . . . . . . . . Derelict Logs Recovered . | . . . . . . . . . . . . Drone Launches . | . . . . . . . . . . . . Drone Recoveries . | . . . . . . . . . . . . Exploration | -11 -10 -9 -8 -7 -7 -6 -6 -6 -6 -6 -6 ------------- Run | Yrd Mat Mat Mat Fac DSF Fac Gar Fac Ext Cet Arc Turns Passed 6835 | 142 489 738 1383 12 227 472 683 939 1418 285 47 Spaces Moved 3492 | 89 293 386 631 4 104 182 332 583 737 132 19 Core 106 | 89 13 . . . . . . 4 . . . Treads 1979 | . 157 386 631 4 104 182 332 48 . 116 19 Legs 1284 | . . . . . . . . 531 737 16 . Wheels 123 | . 123 . . . . . . . . . . Hover . | . . . . . . . . . . . . Flight . | . . . . . . . . . . . . Fastest Speed 50 | 50 95 160 160 245 162 162 162 120 120 120 160 Average Speed 157 | 148 144 160 166 245 180 234 162 133 148 155 160 Slowest Speed 900 | 250 300 160 320 245 245 243 163 900 190 160 160 Overloaded Moves . | . . . . . . . . . . . . Propulsion Burnouts . | . . . . . . . . . . . . Robots Hopped . | . . . . . . . . . . . . Potential Cave-ins . | . . . . . . . . . . . . Cave-ins Triggered . | . . . . . . . . . . . . Exploration Rate (%) 34 | 5 37 27 41 . 57 5 45 14 59 60 33 Regions Visited 11 Branch Regions 3 Pre-discovered Areas . | . . . . . . . . . . . . Known Exits Taken 2 | . . . . 1 . 1 . . . . . Unknown Exits Taken 7 | 1 1 1 1 . . . . 1 1 1 . Scrap Searched . | . . . . . . . . . . . . Spaces Dug . | . . . . . . . . . . . . Terrain Destroyed 133 | . . . 35 . . 1 33 14 49 1 . Melee . | . . . . . . . . . . . . Projectile 55 | . . . 1 . . 1 5 5 42 1 . AOE 77 | . . . 34 . . . 27 9 7 . . Terrain Rammed . | . . . . . . . . . . . . Walls Destroyed . | . . . . . . . . . . . . Machines Disabled . | . . . . . . . . . . . . Actions | -11 -10 -9 -8 -7 -7 -6 -6 -6 -6 -6 -6 --------- Run | Yrd Mat Mat Mat Fac DSF Fac Gar Fac Ext Cet Arc Total 4234 | 98 333 445 800 8 125 212 409 667 937 174 26 Wait 76 | . . 6 28 . 3 . 2 . 34 3 . Move 3481 | 88 292 385 630 3 104 181 330 582 736 131 19 Hop . | . . . . . . . . . . . . Pick Up 68 | 5 10 11 9 . . 6 6 15 4 2 . Fast Attach 48 | 5 3 1 9 . 3 2 4 10 8 3 . Attach 41 | . 1 2 7 2 . 4 3 9 8 5 . Detach 1 | . . . . 1 . . . . . . . Swap 39 | . 5 2 5 1 1 2 7 3 11 2 . Drop 57 | . 8 6 10 1 1 5 7 7 9 3 . Fire 361 | . 14 32 102 . 13 12 50 41 65 25 7 Melee . | . . . . . . . . . . . . Ram . | . . . . . . . . . . . . Kick 2 | . . . . . . . . . 2 . . Crush . | . . . . . . . . . . . . Escape Stasis . | . . . . . . . . . . . . Rewire 60 | . . . . . . . . . 60 . . Trap . | . . . . . . . . . . . . Miscellaneous . | . . . . . . . . . . . . Route ------- -11/Scrapyard -10/Materials (discovered 2 exits: [*Mat] / [*Min]) -9/Materials -8/Materials -7/Factory -7/DSF -6/Factory -6/Garrison -6/Factory -6/Extension (discovered 2 exits: [*Fac] / *Cet) -6/Cetus -6/Archives History --------- Turn | Location | Event 15 | -11/Scrapyard | Discovered new exit (range 15) 143 | -11/Scrapyard | Entered Materials 318 | -10/Materials | Build established: Mutant 504 | -10/Materials | Discovered new exit (range 6) 555 | -10/Materials | Discovered new exit (range 14) 632 | -10/Materials | Entered another Materials area 632 | -9/Materials | Evolved 2 slots: Propulsion x2 1319 | -9/Materials | Discovered new exit (range 16) 1370 | -9/Materials | Entered another Materials area 1370 | -8/Materials | Evolved 2 slots: Utility x2 1614 | -8/Materials | Destroyed 8 combat bots 1844 | -8/Materials | Lost 5 parts (2n2u1w) 2316 | -8/Materials | Build established: Scavenger-Mutant 2662 | -8/Materials | Discovered new exit (range 11) 2698 | -8/Materials | Lost 3 parts (3n) 2753 | -8/Materials | Entered Factory 2753 | -7/Factory | Evolved 2 slots: Utility x1, Weapon x1 2758 | -7/Factory | Identified exit to DSF 2765 | -7/Factory | Entered DSF 2813 | -7/DSF | Discovered new exit (range 16) 2825 | -7/DSF | Additional patrols routed to DSF 2992 | -7/DSF | Entered Factory 2992 | -6/Factory | Evolved 2 slots: Power x1, Utility x1 3301 | -6/Factory | Build established: Scavenger-Tank 3315 | -6/Factory | Garrison activated, responded to threat 3462 | -6/Factory | Identified exit to Garrison 3464 | -6/Factory | Entered Garrison 3502 | -6/Garrison | Triggered checkpoint 3573 | -6/Garrison | Garrison Relay disabled 3643 | -6/Garrison | Installed Relay Interface Framework 3678 | -6/Garrison | Triggered checkpoint 3689 | -6/Garrison | Triggered checkpoint 3751 | -6/Garrison | Lost 3 parts (1p1n1u) 3752 | -6/Garrison | Destroyed 8 combat bots 3918 | -6/Garrison | Triggered checkpoint 4068 | -6/Garrison | Garrison Relay disabled 4121 | -6/Garrison | Discovered new exit (range 11) 4147 | -6/Garrison | Entered Factory 4307 | -6/Factory | Lost 14 parts (1p7n4u2w) 4512 | -6/Factory | Lost 5 parts (2p1u2w) 4823 | -6/Factory | Build established: Scavenger-Gunner 5068 | -6/Factory | Spotted B-75 Beast 5072 | -6/Factory | Core integrity fell below 50% 5082 | -6/Factory | Discovered new exit (range 5) 5086 | -6/Factory | Entered Extension 5363 | -6/Extension | Rescued a captive Derelict 5462 | -6/Extension | Rescued a captive Derelict 5558 | -6/Extension | Rescued a captive Derelict 5599 | -6/Extension | Rescued a captive Derelict 6103 | -6/Extension | Spotted B-75 Beast 6113 | -6/Extension | Spotted B-75 Beast 6159 | -6/Extension | Lost 5 parts (2p1n2w) 6220 | -6/Extension | Core integrity fell below 20% 6227 | -6/Extension | Lost 6 allies 6252 | -6/Extension | Destroyed B-75 Beast 6267 | -6/Extension | Lost 5 parts (2n3u) 6484 | -6/Extension | Discovered new exit (range 16) 6486 | -6/Extension | Discovered new exit (range 15) 6504 | -6/Extension | Entered Cetus 6520 | -6/Cetus | Spotted Cetus Guard 6520 | -6/Cetus | Spotted Cetus Guard 6522 | -6/Cetus | Spotted Cetus Guard 6544 | -6/Cetus | Destroyed Cetus Guard 6555 | -6/Cetus | Destroyed Cetus Guard 6559 | -6/Cetus | Spotted Cetus Guard 6563 | -6/Cetus | Destroyed Cetus Guard 6568 | -6/Cetus | Destroyed Cetus Guard 6587 | -6/Cetus | Lost 7 parts (2n1u4w) 6765 | -6/Cetus | Discovered new exit (range 15) 6789 | -6/Cetus | Entered Archives 6835 | -6/Archives | Build established: Scavenger-Mutant 6836 | -6/Archives | Destroyed by Y-64 Sentinel with KE Penetrator Last Messages --------------- 06729_ Penetrated by Slug. 06731_ Destroyed Phase Shifter. 06731_ H-66 Slayer destroyed. 06739_ #WV#H=UC M7V,6IBJZ87PF0V2G 06743_ Acquired 3 matter. 06744_ Acquired 15 matter. 06763_ System corrupted: Matter fused (-6). 06765_ EXIT=FOUND LOCATION=UNKNOWN GOAL=ESCAPE 06810_ M|WAGMVB8 F& U|9A/F> %KOF5L/AKI#H Y 06814_ Penetrated by Slug. 06818_ Slug penetrates Y-64 Sentinel. 06818_ Destroyed Gravmag System. 06818_ O-32 Director knocked back. 06820_ Penetrated by Slug. 06825_ Y-64 Sentinel destroyed. 06834_ Penetrated by Slug. 06834_ Hvy. Assault Cannon destroyed. 06836_ Penetrated by Slug. Map ----- +----------------------------------------------------+ | | | | | | | | | | | | | ?????????????????????????????????????? | | ?????????????????????????????????????? | | ?????????????????????????????????????? | | ?????????????????????????????????????? | | ?????????????????????????????????????? | | ?????????????????????????????????????? | | ?????????????????????????????????????? | | ?????????????????????????????????????? | | ?????????????????????????????????????? | | ?????????????????????????????????????? | | ?????????????????????????????????????? | | ?????????????????????????????????????? | | ?????????????????????????????????????? | | ???????????????????????"?????????????? | | ???????????????????""V"""????????????? | | ??????????????????""" """#???????????? | | ?????????????????#"" ""# #???????? | | ??############### ???????? | | ??# %% ???????? | | ??# @ % ???????? | | ??# o o% ???????? | | ??#####+######### o ???????? | | ??# #???? ???????? | | ??# #????? ????????? | | ??# """""""??? ?????????? | | ??#"""""""""#"V ???? ?????????? | | ??#""""""""""""?????? ?????????? | | ??#"""""""""#"???????? ??????????? | | ??#"""""""""?????????? ??????????? | | ?????######???????????? ???????????? | | ?????????????????????????????????????? | | ?????????????????????????????????????? | | ?????????????????????????????????????? | | ?????????????????????????????????????? | | ?????????????????????????????????????? | | ?????????????????????????????????????? | | ?????????????????????????????????????? | | ?????????????????????????????????????? | | ?????????????????????????????????????? | | ?????????????????????????????????????? | | ?????????????????????????????????????? | | ?????????????????????????????????????? | | ?????????????????????????????????????? | | ?????????????????????????????????????? | +----------------------------------------------------+ Best States ------------- Heat Dissipation 75 Coolant Potential 65 Energy Generation 45 Energy Capacity 600 Matter Stores 300 Matter Capacity 500 Sight Range 16 Robot Scan Range 15 Terrain Scan Density 10 Armor Coverage 600 Core Shielding 30 Phase Shifting 15 Evasion (%) 55 Targeting Accuracy 12 Recoil Reduction 4 Item Schematics ----------------- None Robot Schematics ------------------ None Fabricated ------------ Nothing Repaired ---------- Nothing Studied --------- None Alien Tech Used ----------------- None Achievements -------------- None Challenges ------------ None Game ------ Seed SchematicDeuteriumBlaster Manual? 0 Play Time 00:44:59 Cumulative 337.6 hours Start 2025.11.01 @ 20:55:42 End 2025.11.01 @ 21:44:33 Sessions 1 Manual Loads 0 Difficulty Rogue Special Mode None Game No. 296 Rogue 296 Adventurer 0 Explorer 0 Win Type - Total 2 Types 1/1/0/0/0/0/0/0/0/0 Lore% 80 Gallery% 80 Achievement% 52 Wizard Run 0 Options --------- Layout 1 ASCII 0 Keyboard 0 Movement Arrows Keybinds 0 Fullscreen 1 Font 24/Smallcaps Map View 50x35 Zoom Use 0% Tactical HUD 1 Map Filters NONE Filters NONE Steam X RUN: efa58944-7220-4c1a-812a-b9cfdfdf715b